bitfinex-derivatives/quotes_ETHF0:USTF0_20251024
["timestamp","ask_amount","ask_price","bid_price","bid_amount"]
[1761280029446,0.1918065,3921.8,3921.7,1.99683862]
[1761280029756,9.4638065,3921.8,3921.7,1.99683862]
[1761280030845,0.1918065,3921.8,3921.7,1.99683862]
[1761280031052,9.4628065,3921.8,3921.7,1.99683862]
[1761280031448,0.1918065,3921.8,3921.7,1.99683862]
[1761280031845,9.4578065,3921.8,3921.7,1.99683862]
[1761280033046,9.5431065,3921.8,3921.7,1.99683862]
[1761280033254,9.6284065,3921.8,3921.7,0.90003862]
[1761280033448,9.6284065,3921.8,3921.7,1.42173862]
[1761280034862,0.2388,3923.8,3922.0,0.3429]
[1761280035147,0.4996,3922.8,3922.7,4.6264]
[1761280035352,0.4776,3922.6,3922.5,1.2398]
[1761280035551,0.4776,3922.6,3922.3,3.2078]
[1761280035552,0.4776,3922.4,3922.3,0.8969]
[1761280035750,0.4776,3922.2,3922.1,0.8969]
[1761280035954,0.48076011,3922.2,3922.1,0.8969]
[1761280036152,0.4776,3921.9,3921.8,3.7295]
[1761280036347,9.278,3921.9,3921.8,4.3046]
[1761280036546,0.00316011,3922.2,3922.1,0.8969]
[1761280036547,0.48076011,3922.2,3922.1,0.8969]
[1761280036749,9.75776011,3922.2,3922.1,0.8969]
[1761280036946,0.7164,3921.8,3921.7,0.00313862]
[1761280037151,0.7164,3921.8,3921.7,0.90003862]
[1761280037358,0.24196011,3922.2,3922.1,1.0968]
[1761280037656,9.52796011,3922.2,3922.1,1.9937]
[1761280037951,9.52796011,3922.2,3921.7,0.00313862]
[1761280037952,0.2388,3921.9,3921.7,0.90003862]
[1761280038150,0.4776,3921.8,3921.7,0.90003862]
[1761280039455,0.4776,3921.8,3921.7,4.10783862]
[1761280039958,0.7164,3921.8,3921.7,0.00313862]
[1761280040659,10.0034,3921.8,3921.7,0.00313862]
[1761280040950,9.7646,3921.8,3921.7,4.62953862]
[1761280041660,10.0034,3921.8,3921.7,4.10783862]
[1761280042165,9.7606,3921.8,3921.7,4.10783862]
[1761280042459,9.7606,3921.8,3921.7,4.62953862]
[1761280043052,0.4776,3921.8,3921.7,4.62953862]
[1761280043254,9.7566,3921.8,3921.7,4.62953862]
[1761280043453,9.7566,3921.8,3921.7,5.20463862]
[1761280044264,0.24196011,3922.2,3922.1,1.9937]
[1761280044464,9.51796011,3922.2,3922.1,5.2015]
[1761280045054,9.75676011,3922.2,3922.1,5.2015]
[1761280045256,0.24196011,3922.2,3922.1,5.2015]
[1761280045465,0.00316011,3922.2,3922.1,4.1047]
[1761280045762,9.75676011,3922.2,3922.1,4.1047]
[1761280046166,9.99556011,3922.2,3922.1,3.2078]
[1761280046656,9.99556011,3922.2,3922.1,4.1047]
[1761280046857,10.19066508,3922.2,3922.1,4.1047]
[1761280047365,0.67586508,3922.2,3922.1,5.1648]
[1761280047560,9.95286508,3922.2,3922.1,5.1648]
[1761280047766,9.94986508,3922.2,3922.1,5.1648]
[1761280048158,0.67586508,3922.2,3922.1,4.6264]
[1761280048358,9.95086508,3922.2,3922.1,4.6264]
[1761280048858,0.67586508,3922.2,3922.1,4.6264]
[1761280049066,0.67586508,3922.2,3922.1,3.2078]
[1761280049067,10.11546508,3922.2,3922.1,3.2078]
[1761280049662,0.3216,3921.8,3921.7,0.81183862]
[1761280049960,9.94750497,3921.8,3921.7,0.81183862]
[1761280050368,9.94750497,3921.8,3921.7,0.00313862]
[1761280050565,9.94650497,3921.8,3921.7,0.00313862]
[1761280050961,23.84650497,3921.8,3921.7,0.81183862]
[1761280051656,0.1979,3921.3,3921.1,3.2078]
[1761280051861,0.2349,3920.6,3920.5,0.9086]
[1761280052059,9.93290497,3920.6,3920.5,0.3429]
[1761280052262,0.2349,3920.5,3920.1,0.57296]
[1761280052466,0.4698,3920.2,3920.1,0.57296]
[1761280052662,9.93290497,3920.2,3920.1,0.57530454]
[1761280053870,9.93290497,3920.2,3920.1,1.38400454]
[1761280054257,9.93290497,3920.2,3920.1,0.81830454]
[1761280054576,10.16780497,3920.2,3920.1,0.81830454]
[1761280054873,10.16780497,3920.2,3920.1,0.00960454]
[1761280055257,15.16780497,3920.2,3920.1,0.00960454]
[1761280055972,29.06780497,3920.2,3920.1,0.00960454]
[1761280056262,29.06780497,3920.2,3919.6,3.2078]
[1761280056263,28.83290497,3920.2,3919.6,3.2078]
[1761280056570,0.7047,3919.7,3919.6,3.2078]
[1761280056771,10.16080497,3919.7,3919.6,3.2078]
[1761280057263,0.89980497,3919.7,3919.6,3.2098059]
[1761280057470,10.16080497,3919.7,3919.6,3.2098059]
[1761280057967,10.16080497,3919.7,3919.6,0.0020059]
[1761280058268,9.92290497,3919.7,3919.6,0.8107059]
[1761280058671,0.19510497,3919.7,3919.6,5.1670059]
[1761280058870,9.45310497,3919.7,3919.6,5.1670059]
[1761280059071,9.68800497,3919.7,3919.6,5.1670059]
[1761280059668,9.45310497,3919.7,3919.6,5.1670059]
[1761280059869,9.68800497,3919.7,3919.6,5.1670059]
[1761280062674,9.92290497,3919.7,3919.6,4.5842059]
[1761280062878,10.15780497,3919.7,3919.6,0.8107059]
[1761280063370,10.15780497,3919.7,3919.6,0.0020059]
[1761280063871,9.91890497,3919.7,3919.6,1.3764059]
[1761280064485,9.91890497,3919.7,3919.6,1.9592059]
[1761280065071,10.15080497,3919.7,3919.6,0.8107059]
[1761280065578,10.15080497,3919.7,3919.6,0.0020059]
[1761280065972,10.14917675,3919.7,3919.6,0.0020059]
[1761280066172,10.14917675,3919.7,3919.6,0.8107059]
[1761280068484,10.14917675,3919.7,3919.6,0.0020059]
[1761280069472,10.14417675,3919.7,3919.6,0.0020059]
[1761280069877,0.66327675,3919.7,3919.6,1.3764059]
[1761280070081,9.90427675,3919.7,3919.6,5.1670059]
[1761280070475,10.13917675,3919.7,3919.6,3.2098059]
[1761280070676,10.13917675,3919.7,3919.6,0.0020059]
[1761280073380,0.6984,3919.2,3919.1,3.2078]
[1761280073575,10.12887675,3919.2,3919.1,3.2078]
[1761280073773,24.02887675,3919.2,3919.1,3.2078]
[1761280074184,24.02887675,3919.2,3919.1,4.0165]
[1761280074376,24.03137028,3919.2,3919.1,4.01906165]
[1761280074683,23.79857028,3919.2,3919.1,4.01906165]
[1761280074878,24.03137028,3919.2,3919.1,3.21036165]
[1761280075281,23.79857028,3919.2,3919.1,5.16756165]
[1761280075582,23.79457028,3919.2,3919.1,5.16756165]
[1761280076177,9.89257028,3919.2,3919.1,5.16756165]
[1761280076372,9.42697028,3919.2,3919.1,5.16756165]
[1761280076572,9.4628,3919.6,3919.5,0.8864]
[1761280076779,9.6956,3919.6,3919.5,4.3372]
[1761280077187,9.6956,3919.6,3919.5,4.9029]
[1761280077486,9.6956,3919.6,3919.5,5.4857]
[1761280078087,9.69837049,3919.6,3919.5,5.4857]
[1761280079786,0.46837049,3919.6,3919.5,5.4857]
[1761280079981,9.70637049,3919.6,3919.5,5.4857]
[1761280081685,9.93047049,3919.6,3919.5,4.3372]
[1761280081882,0.4482,3919.4,3919.3,0.8551]
[1761280082286,0.22687049,3919.6,3919.5,0.3183]
[1761280082493,9.46087049,3919.6,3919.5,5.4914]
[1761280082789,9.68497049,3919.6,3919.5,5.4914]
[1761280083287,9.46087049,3919.6,3919.5,5.4914]
[1761280083790,9.23677049,3919.6,3919.5,5.4914]
[1761280084686,9.46087049,3919.6,3919.5,5.4914]
[1761280085987,9.23677049,3919.6,3919.5,5.4914]
[1761280086888,9.46087049,3919.6,3919.5,5.4914]
[1761280087086,9.44987049,3919.6,3919.5,5.4914]
[1761280087883,9.67397049,3919.6,3919.5,5.4914]
[1761280088077,0.45097049,3919.6,3919.5,5.4914]
[1761280088280,9.67397049,3919.6,3919.5,5.4914]
[1761280088489,10.62851823,3919.6,3919.5,4.3812]
[1761280088693,10.8209617,3919.6,3919.5,4.3812]
[1761280089192,10.8209617,3919.6,3919.5,3.2078]
[1761280091791,12.65462819,3919.6,3919.5,3.2078]
[1761280092791,26.55462819,3919.6,3919.5,3.2078]
[1761280092992,26.55462819,3919.6,3919.5,4.0629]
[1761280093683,26.55462819,3919.6,3919.5,4.9347]
[1761280093684,26.33052819,3919.6,3919.5,4.9347]
[1761280094593,26.55462819,3919.6,3919.5,4.3812]
[1761280095097,24.7209617,3919.6,3919.5,4.3812]
[1761280095296,24.7209617,3919.6,3919.5,3.2078]
[1761280095895,23.76341396,3919.6,3919.5,4.9347]
[1761280096094,24.4968617,3919.6,3919.5,4.9347]
[1761280096797,14.31931396,3919.6,3919.5,5.4914]
[1761280096985,9.62331396,3919.6,3919.5,5.4914]
[1761280097188,9.39921396,3919.6,3919.5,5.4914]
[1761280098986,0.19521396,3919.6,3919.5,5.4914]
[1761280099187,1.83503018,3920.8,3920.2,0.5567]
[1761280099387,2.05913018,3920.9,3920.8,0.8551]
[1761280099588,0.4482,3920.7,3920.5,0.3183]
[1761280099783,0.4482,3920.4,3920.3,0.8551]
[1761280099983,1.18164774,3920.4,3920.3,0.8551]
[1761280100197,1.18366791,3920.4,3920.3,1.4086]
[1761280100697,10.38666791,3920.4,3920.3,1.9653]
[1761280102799,1.18366791,3920.4,3920.3,1.9653]
[1761280102996,10.38066791,3920.4,3920.3,1.9653]
[1761280103996,10.38066791,3920.4,3920.2,1.4086]
[1761280103997,0.4482,3920.3,3920.2,1.4086]
[1761280104591,9.6432,3920.3,3920.2,1.4086]
[1761280105193,9.6432,3920.3,3920.2,1.9653]
[1761280105401,0.73546791,3920.4,3920.2,4.318]
[1761280105603,0.73546791,3920.4,3920.3,1.9653]
[1761280105802,0.95956791,3920.4,3920.3,1.9653]
[1761280106003,10.14956791,3920.4,3920.3,1.9653]
[1761280107293,0.95956791,3920.4,3920.3,1.9653]
[1761280107495,11.10411565,3920.4,3920.3,1.9653]
[1761280108000,10.37066791,3920.4,3920.3,1.9653]
[1761280109001,10.43686791,3920.4,3920.3,0.8551]
[1761280109206,11.17031565,3920.4,3920.3,0.8551]
[1761280110100,0.0662,3920.1,3919.8,3.9708]
[1761280110405,0.86584774,3919.9,3919.8,4.4846]
[1761280111296,1.05588112,3919.9,3919.8,4.4846]
[1761280111907,1.05588112,3919.9,3919.8,5.0144]
[1761280112899,9.43923338,3919.9,3919.8,5.0144]
[1761280113099,10.17268112,3919.9,3919.8,5.0144]
[1761280113401,0.98968112,3919.9,3919.8,5.0144]
[1761280113601,10.16668112,3919.9,3919.8,5.0144]
[1761280114907,10.10048112,3919.9,3919.8,5.0144]
[1761280115206,10.19488112,3919.9,3919.8,5.0144]
[1761280116001,0.97068112,3919.9,3919.8,5.0144]
[1761280116207,10.14468112,3919.9,3919.8,5.0144]
[1761280117512,0.92348112,3919.9,3919.8,5.0144]
[1761280117706,10.09748112,3919.9,3919.8,5.0144]
[1761280117911,10.19188112,3919.9,3919.8,5.0144]
[1761280118609,10.18888112,3919.9,3919.8,5.0144]
[1761280119910,9.45543338,3919.9,3919.8,5.0144]
[1761280120211,10.18888112,3919.9,3919.8,5.0144]
[1761280128713,10.18888112,3919.9,3919.8,4.4846]
[1761280129214,10.23608112,3919.9,3919.8,3.9708]
[1761280129416,10.18888112,3919.9,3919.8,3.9708]
[1761280129817,10.18888112,3919.9,3919.8,4.47]
[1761280131908,10.23608112,3919.9,3919.8,3.9708]
[1761280133121,0.4,3919.8,3919.4,3.2078]
[1761280133416,1.2,3919.5,3919.4,3.2078]
[1761280133717,24.44803338,3919.5,3919.4,3.2078]
[1761280134710,25.32852101,3919.5,3919.4,3.707]
[1761280135219,25.32852101,3919.5,3919.4,4.4436]
[1761280135912,24.62428841,3919.5,3919.4,4.948]
[1761280136419,10.72428841,3919.5,3919.4,4.948]
[1761280137908,11.12428841,3919.5,3919.4,4.948]
[1761280138225,1.39003338,3919.5,3919.4,3.9444]
[1761280138414,10.14803338,3919.5,3919.4,4.4436]
[1761280138916,10.54803338,3919.5,3919.4,4.4436]
[1761280139111,1.39003338,3919.5,3919.4,4.4436]
[1761280139313,11.02852101,3919.5,3919.4,4.3758]
[1761280140017,11.31182101,3919.5,3919.4,0.6898]
[1761280140318,1.87052101,3919.5,3919.4,1.6356]
[1761280140521,11.02852101,3919.5,3919.4,1.6356]
[1761280140724,11.02852101,3919.5,3919.4,0.6898]
[1761280140915,25.21182101,3919.5,3919.4,0.6898]
[1761280141315,24.92852101,3919.5,3919.4,1.168]
[1761280142016,24.92425638,3919.5,3919.4,1.168]
[1761280142312,0.2833,3919.4,3919.2,0.6898]
[1761280142623,1.03566875,3919.3,3919.2,0.6898]
[1761280143618,1.84477272,3919.3,3919.2,1.6356]
[1761280144128,11.00277272,3919.3,3919.2,1.6356]
[1761280147423,11.28607272,3919.3,3919.2,1.168]
[1761280148925,11.00277272,3919.3,3919.2,1.6356]
[1761280149221,9.34376875,3919.3,3919.2,1.6356]
[1761280149922,0.18576875,3919.3,3919.2,1.6356]
[1761280150128,9.34376875,3919.3,3919.2,1.6356]
[1761280150623,0.18576875,3919.3,3919.2,1.6356]
[1761280151026,0.18576875,3919.3,3919.2,6.6356]
[1761280151227,9.158,3919.4,3919.2,6.6356]
[1761280151228,1.37570397,3920.2,3919.3,0.9458]
[1761280151423,1.37570397,3920.2,3920.1,4.8434]
[1761280151624,10.81700397,3920.2,3920.1,4.8434]
[1761280152026,9.4413,3920.2,3920.1,4.8434]
[1761280152530,10.81605535,3920.2,3920.1,4.8434]
[1761280152831,10.53275535,3920.2,3920.1,4.8434]
[1761280153127,9.158,3920.2,3920.1,4.8434]
[1761280154431,9.157,3920.5,3920.3,1.6356]
[1761280155531,9.15902017,3920.4,3920.3,1.6356]
[1761280156430,9.44232017,3920.4,3920.3,1.6356]
[1761280156733,10.00892017,3920.4,3920.3,0.6898]
[1761280157123,11.38367552,3920.4,3920.3,0.6898]
[1761280157420,11.38367552,3920.4,3920.1,3.2078]
[1761280157421,0.8499,3920.2,3920.1,3.2078]
[1761280157731,3.10514298,3920.2,3920.1,3.8976]
[1761280158524,3.10514298,3920.2,3920.1,3.2078]
[1761280159218,3.10514298,3920.2,3920.1,3.8976]
[1761280160127,3.10514298,3920.2,3920.1,3.2078]
[1761280161629,3.10514298,3920.2,3920.1,3.8976]
[1761280162038,1.73038763,3920.2,3920.1,3.2078]
[1761280162728,3.10514298,3920.2,3920.1,3.2078]
[1761280162936,1.73038763,3920.2,3920.1,3.2078]
[1761280163236,1.91582486,3920.2,3920.1,3.2078]
[1761280163628,15.81582486,3920.2,3920.1,3.2078]
[1761280163938,0.8499,3919.7,3919.6,3.8976]
[1761280164131,11.07082486,3919.7,3919.6,3.8976]
[1761280164730,0.2833,3919.3,3919.2,0.4782]
[1761280164936,10.19033723,3919.3,3919.2,1.168]
[1761280165234,23.24043723,3919.3,3919.2,1.6356]
[1761280165934,23.52373723,3919.3,3919.2,1.6356]
[1761280168340,23.80703723,3919.3,3919.2,1.6356]
[1761280168536,23.96283723,3919.3,3919.2,1.168]
[1761280169040,23.80703723,3919.3,3919.2,1.168]
[1761280169740,23.95883723,3919.3,3919.2,1.168]
[1761280170437,23.80703723,3919.3,3919.2,1.168]
[1761280172035,23.95883723,3919.3,3919.2,0.6898]
[1761280178041,23.80703723,3919.3,3919.2,1.5154]
[1761280179244,0.18543723,3919.3,3919.2,1.5154]
[1761280179442,9.33943723,3919.3,3919.2,1.4352]
[1761280183247,0.18543723,3919.3,3919.2,1.4352]
[1761280183541,9.153,3919.3,3919.2,1.4352]
[1761280183744,9.33843723,3919.3,3919.2,1.4352]
[1761280184550,0.18543723,3919.3,3919.2,1.4352]
[1761280184749,0.18543723,3919.3,3919.2,0.8256]
[1761280185055,0.18543723,3919.5,3919.2,0.8256]
[1761280185252,0.18543723,3919.4,3919.3,0.6096]
[1761280185437,9.153,3919.6,3919.4,0.8256]
[1761280185642,0.18945391,3919.5,3919.4,0.8256]
[1761280185945,0.18945391,3919.5,3919.4,4.643]
[1761280186144,0.34125391,3919.5,3919.4,4.643]
[1761280186647,0.18945391,3919.5,3919.4,4.643]
[1761280192152,0.34125391,3919.5,3919.4,4.643]
[1761280192357,0.18945391,3919.5,3919.4,4.643]
[1761280197055,1.37291661,3920.0,3919.9,0.6096]
[1761280197358,13.9,3921.5,3920.0,0.2632]
[1761280197359,0.6405,3920.8,3920.0,0.2632]
[1761280197557,1.463,3920.8,3920.7,4.0334]
[1761280197760,1.463,3920.8,3920.7,4.643]
[1761280198258,1.46565879,3920.8,3920.7,4.2387]
[1761280198460,1.46565879,3920.8,3920.7,4.643]
[1761280198658,0.00265879,3920.8,3920.7,4.643]
[1761280199359,1.4602,3921.3,3921.2,1.0339]
[1761280199560,1.4602,3921.3,3921.2,4.2417]
[1761280199968,1.4602,3921.3,3921.2,4.674]
[1761280200469,1.46232612,3921.3,3921.2,4.674]
[1761280200671,10.61132612,3921.3,3921.2,4.674]
[1761280200867,10.00282612,3921.3,3921.2,4.674]
[1761280201167,0.00212612,3921.3,3921.2,4.674]
[1761280202167,11.34467486,3921.3,3921.2,3.2078]
[1761280202971,2.2926913,3922.8,3921.7,3.2078]
[1761280203162,2.28264007,3923.8,3923.5,0.2508]
[1761280203469,4.005,3924.9,3924.2,0.6004]
[1761280203664,4.005,3924.9,3924.0,0.2508]
[1761280203665,3.89501448,3924.3,3924.0,0.8512]
[1761280203866,3.89501448,3924.3,3924.0,0.85393458]
[1761280203867,0.68721448,3924.1,3924.0,0.85393458]
[1761280204470,23.82921448,3924.1,3924.0,1.28743458]
[1761280204772,0.68721448,3924.1,3924.0,1.71973458]
[1761280204966,9.92821448,3924.1,3924.0,1.71973458]
[1761280205968,9.92821448,3924.1,3924.0,1.28743458]
[1761280206169,9.92821448,3924.1,3924.0,0.00273458]
[1761280206363,0.9045,3923.1,3923.0,0.6843]
[1761280206568,16.00208449,3923.1,3922.5,0.6843]
[1761280206770,0.3015,3922.6,3922.5,1.1166]
[1761280206969,9.5445,3922.6,3922.5,1.1166]
[1761280207371,9.5445,3922.6,3922.5,1.11858746]
[1761280207969,12.79628449,3922.6,3922.5,0.00198746]
[1761280208169,12.72793734,3924.3,3924.2,0.4335]
[1761280208472,9.52013734,3924.3,3924.2,1.0339]
[1761280208674,9.55813734,3924.3,3924.2,4.674]
[1761280208968,9.55813734,3924.3,3924.2,1.4662]
[1761280210070,9.55613734,3924.3,3924.2,1.4662]
[1761280210267,0.00213734,3924.3,3924.2,1.4662]
[1761280210775,0.00213734,3924.3,3924.2,4.674]
[1761280212673,9.27813734,3924.3,3924.2,4.674]
[1761280213877,0.00213734,3924.3,3924.2,4.674]
[1761280214171,9.41213734,3924.3,3924.2,4.674]
[1761280214577,9.26913734,3924.3,3924.2,4.674]
[1761280215180,9.54513734,3924.3,3924.2,4.674]
[1761280215370,9.54513734,3924.3,3924.2,1.4662]
[1761280216986,12.89093734,3924.3,3924.2,0.6004]
[1761280217367,0.138,3924.2,3924.0,0.21380519]
[1761280217679,0.35,3923.8,3923.7,1.0339]
[1761280217972,12.17297001,3923.8,3923.7,1.0339]
[1761280219876,12.17297001,3923.8,3923.5,0.8512]
[1761280220075,0.525,3923.6,3923.5,0.8512]
[1761280221275,0.35,3923.6,3923.5,1.717]
[1761280221882,9.6,3923.6,3923.5,1.717]
[1761280222388,9.6,3923.6,3923.5,1.2847]
[1761280222686,0.525,3923.6,3923.5,1.2847]
[1761280222884,0.35,3923.3,3923.2,0.6004]
[1761280223075,3.08697001,3923.3,3923.2,0.6004]
[1761280223383,0.35,3923.1,3923.0,4.059]
[1761280223689,9.772,3923.1,3923.0,0.8512]
[1761280223979,0.175,3923.9,3923.1,0.6004]
[1761280224182,3.2078,3924.4,3924.1,1.0327]
[1761280224381,3.151,3924.6,3924.2,1.4662]
[1761280224576,2.56197001,3924.5,3924.2,1.4662]
[1761280226381,9.27913734,3924.3,3924.2,1.4662]
[1761280226578,3.2078,3926.0,3925.6,0.6004]
[1761280226880,0.8517,3925.1,3925.0,1.1166]
[1761280227082,6.73067001,3925.1,3925.0,1.1166]
[1761280227380,3.6276,3925.4,3925.0,1.1166]
[1761280227576,9.284,3925.3,3925.0,1.11877855]
[1761280228281,0.00198819,3925.4,3925.0,1.11877855]
[1761280228490,9.287,3925.3,3925.0,1.11877855]
[1761280228786,9.287,3925.3,3925.2,1.8122]
[1761280228979,0.00198819,3925.4,3925.3,1.8275]
[1761280229283,9.28698819,3925.4,3925.3,1.8275]
[1761280229890,9.28598819,3925.4,3925.3,1.8275]
[1761280230781,0.00198819,3925.4,3925.3,1.8275]
[1761280230987,9.28098819,3925.4,3925.3,1.8275]
[1761280231789,9.80378819,3925.4,3925.3,1.8275]
[1761280232283,10.34758819,3925.4,3925.3,1.8275]
[1761280233386,11.15358819,3925.4,3925.3,0.79]
[1761280233890,11.15358819,3925.4,3925.3,1.3214]
[1761280234395,1.0666,3924.6,3924.5,1.3119]
[1761280234695,13.70757001,3924.6,3924.5,1.3119]
[1761280234885,27.60757001,3924.6,3924.5,1.3119]
[1761280235188,27.60757001,3924.6,3924.5,1.31495586]
[1761280235881,27.60757001,3924.6,3924.5,0.00305586]
[1761280237585,27.60457001,3924.6,3924.5,0.00305586]
[1761280239591,27.60157001,3924.6,3924.5,0.00305586]
[1761280240485,0.5228,3923.8,3923.7,1.0709]
[1761280240795,9.7828,3923.8,3923.7,1.0709]
[1761280240994,9.7828,3923.8,3923.7,1.8514]
[1761280241291,1.8726,3924.2,3924.1,0.5314]
[1761280241492,11.1326,3924.2,3924.1,1.3119]
[1761280241896,10.3236,3924.2,3924.1,1.8514]
[1761280243094,11.1296,3924.2,3924.1,1.8514]
[1761280244999,11.1296,3924.2,3924.1,0.7805]
[1761280245203,11.1296,3924.2,3924.1,1.3119]
[1761280245590,10.3236,3924.2,3924.1,1.8514]
[1761280246187,3.7306,3924.7,3924.2,0.7805]
[1761280246388,4.2744,3924.7,3924.6,1.8514]
[1761280246594,14.3254,3924.7,3924.6,1.8514]
[1761280246798,14.3424,3924.7,3924.6,1.3119]
[1761280247496,13.5364,3924.7,3924.6,1.8514]
[1761280248691,14.3424,3924.7,3924.6,1.8514]
[1761280249399,14.3404,3924.7,3924.6,1.8514]
[1761280253090,0.806,3924.6,3924.1,0.7805]
[1761280253304,1.0666,3924.2,3924.1,1.0709]
[1761280253604,10.3186,3924.2,3924.1,1.0709]
[1761280253797,10.3186,3924.2,3924.1,1.8514]
[1761280255694,11.1246,3924.2,3924.1,1.8514]
[1761280255893,0.806,3924.1,3923.8,0.7805]
[1761280256095,1.8726,3923.9,3923.8,1.8514]
[1761280256295,11.1136,3923.9,3923.8,1.8514]
[1761280256806,10.3076,3923.9,3923.8,1.8514]
[1761280257006,9.7638,3923.9,3923.8,1.8514]
[1761280258109,11.1136,3923.9,3923.8,1.8514]
[1761280258306,11.1086,3923.9,3923.8,1.8514]
[1761280258505,10.3026,3923.9,3923.8,1.8514]
[1761280259306,0.806,3924.2,3924.1,1.7179]
[1761280259307,0.5529,3924.2,3924.1,1.7179]
[1761280259505,0.5529,3924.5,3924.4,1.0209]
[1761280259710,9.7859,3924.5,3924.4,1.7179]
[1761280259912,1.7837,3924.5,3924.4,1.2209]
[1761280260110,11.0167,3924.5,3924.4,1.7179]
[1761280260310,10.2807,3924.5,3924.4,1.7179]
[1761280260507,11.0167,3924.5,3924.4,1.7179]
[1761280261002,1.7837,3924.5,3924.4,1.7179]
[1761280261302,1.0477,3924.5,3924.4,1.7179]
[1761280261500,1.0477,3924.8,3924.7,1.7179]
[1761280261696,10.2777,3924.8,3924.7,1.7179]
[1761280262907,10.2777,3924.8,3923.9,3.2078]
[1761280262908,1.7837,3924.2,3923.9,3.2078]
[1761280263212,11.0107,3924.1,3924.0,0.697]
[1761280263412,11.0107,3924.1,3924.0,2.0012]
[1761280263709,10.2747,3924.1,3924.0,2.0012]
[1761280264112,9.227,3924.1,3924.0,2.0012]
[1761280264505,3.37671721,3924.2,3924.1,1.2209]
[1761280264702,12.60171721,3924.2,3924.1,1.7179]
[1761280264903,13.09651721,3924.2,3924.1,1.7179]
[1761280266816,12.59671721,3924.2,3924.1,1.7179]
[1761280267617,9.22,3924.2,3924.1,1.7179]
[1761280267914,9.7729,3924.2,3924.1,1.7179]
[1761280268116,10.2677,3924.2,3924.1,1.7179]
[1761280269315,9.7729,3924.2,3924.1,1.7179]
[1761280270408,9.22,3924.2,3924.1,1.7179]
[1761280270831,5.38330349,3924.8,3924.1,1.7179]
[1761280271116,1.2889,3924.6,3924.2,0.697]
[1761280271414,1.7837,3924.6,3924.5,1.2209]
[1761280272213,1.0477,3924.2,3924.1,1.7179]
[1761280272410,10.2597,3924.2,3924.1,1.7179]
[1761280272818,10.2597,3924.2,3924.1,4.9257]
[1761280276321,10.2597,3924.2,3924.1,4.9257]
[1761280277623,0.736,3924.5,3924.1,4.9257]
[1761280277920,10.9817,3924.4,3924.3,1.2209]
[1761280278314,10.9817,3924.4,3924.3,0.697]
[1761280278522,0.736,3924.3,3924.1,4.4287]
[1761280278820,2.66206536,3924.2,3924.1,3.2078]
[1761280279520,2.66206536,3924.2,3924.1,3.9048]
[1761280280825,2.66206536,3924.2,3924.1,3.2078]
[1761280283621,0.5529,3923.8,3923.7,3.20976206]
[1761280283922,10.9707,3923.8,3923.7,4.92766206]
[1761280285721,9.187,3923.8,3923.7,4.92766206]
[1761280285926,2.26560107,3924.8,3924.5,1.0209]
[1761280285927,1.0477,3924.6,3924.5,1.0209]
[1761280286119,1.0477,3924.6,3924.5,4.2287]
[1761280286517,1.7837,3924.6,3924.5,3.2078]
[1761280286713,1.7837,3924.6,3924.5,3.7317]
[1761280287925,1.2889,3924.6,3924.5,4.2287]
[1761280288111,1.7473,3924.6,3924.5,4.2287]
[1761280289821,1.2889,3924.6,3924.5,4.2287]
[1761280290025,10.9433,3924.6,3924.5,4.2287]
[1761280290522,10.9433,3924.6,3924.5,3.7317]
[1761280291826,10.9433,3924.6,3924.5,4.2248]
[1761280292730,2.26560107,3925.8,3925.2,0.45849]
[1761280293025,3.2078,3928.2,3927.1,0.7079]
[1761280293026,8.3417,3927.8,3927.1,0.7079]
[1761280293227,0.4597,3927.3,3927.2,1.6664]
[1761280293425,3.19570107,3927.7,3927.6,0.4654]
[1761280293728,0.93258819,3927.7,3927.6,1.66825985]
[1761280293922,3.19818926,3927.7,3927.6,1.66825985]
[1761280294321,3.19818926,3927.7,3927.6,0.00185985]
[1761280294720,3.90148926,3927.7,3927.6,0.00185985]
[1761280295428,3.90148926,3927.7,3927.6,1.17515985]
[1761280295725,3.90148926,3927.7,3927.6,1.66825985]
[1761280295726,3.19818926,3927.7,3927.6,1.66825985]
[1761280296727,12.46518926,3927.7,3927.6,1.66825985]
[1761280297430,3.08965445,3929.0,3927.6,1.66825985]
[1761280297431,3.2078,3929.1,3929.0,1.9339]
[1761280297618,3.2078,3930.7,3929.1,0.7079]
[1761280297930,6.545,3930.7,3930.2,0.7079]
[1761280298231,3.2078,3931.1,3930.7,0.7079]
[1761280298429,0.7033,3930.9,3930.1,0.7079]
[1761280298727,3.2078,3930.5,3929.8,0.7079]
[1761280298929,2.26560107,3930.9,3930.7,0.7079]
[1761280299130,0.7033,3930.9,3930.5,0.7079]
[1761280299332,9.367,3931.1,3930.7,0.7079]
[1761280299333,2.26560107,3930.8,3930.7,0.7079]
[1761280299627,3.2078,3931.6,3930.7,0.7079]
[1761280299628,9.386,3931.5,3930.7,0.7079]
[1761280299834,2.26560107,3931.4,3930.7,0.7079]
[1761280300225,23.99218738,3931.5,3930.7,0.7079]
[1761280300424,0.7033,3931.4,3930.9,0.7079]
[1761280300737,0.7033,3931.3,3930.9,0.7079]
[1761280301534,9.383,3931.2,3930.9,0.7079]
[1761280302231,0.00288738,3931.5,3931.3,0.7079]
[1761280302626,0.00288738,3931.5,3931.4,3.9157]
[1761280302932,0.7033,3932.1,3931.5,0.7079]
[1761280303133,10.0833,3932.1,3931.5,0.7079]
[1761280303339,0.7033,3933.5,3932.4,0.2675]
[1761280303522,2.96890107,3932.8,3932.5,0.7079]
[1761280303728,2.97187122,3932.8,3932.5,0.7079]
[1761280304239,0.7033,3934.1,3932.5,0.7079]
[1761280304433,0.2671,3936.6,3932.4,3.4753]
[1761280304434,3.9111,3933.8,3932.8,3.9157]
[1761280304740,0.7333,3932.9,3932.8,0.7079]
[1761280305039,0.03,3932.9,3932.8,0.7079]
[1761280305333,0.03287332,3932.9,3932.8,0.71012633]
[1761280307931,117.78013165,3938.4,3933.1,0.7079]
[1761280307932,5.1453,3934.2,3933.1,0.7079]